Workbook

Sheet Instruções
B1: Entidade Requisitante: | C1: Obrigatório. Indicar o nome da entidade que está a solicitar as análises
B2: Orçamento/Req. N.º: | C2: Facultativo
B4: HORA | C4: Facultativo
C5: Importante para o caso de certas análises, ex. Radão
C6: Digitar números seguidos. Não há necessidade de utilizar qualquer tipo de separador
B9: Data Colheita | C9: Data da colheita realizada ou da proposta de data | H9: Hora Colheita (24:00) | I9: Data Colheita (dd-mm-aaaa) | J9: Tipo de amostra | K9: Área/Zona
C10: Não há necessidade de preencher o campo por cada parâmetro. | I10: 2023-01-16 | J10: Águas_de_Consumo_Humano | K10: ACH TESTE 1
C11: Automáticamente será considerada a data anterior | I11: Será considerada a data de 16-01-2023
J13: Águas_Residuais | K13: Campanha 1
I15: 2023-01-17 | J15: Águas_Residuais | K15: Campanha 1
B17: Tipo de amostra | C17: Só podem ser escolhidos "Tipos da amostra" da lista apresentada
B20: Área/Zona | C20: Caso exista uma lista podem ser escolhidas "Área/Zona" da lista apresentada
C21: Não é obrigatório escolher "Área/Zona" da lista apresentada se necessário criar uma nova designação.
B23: Nome Ponto/Designação amostra | C23: Caso exista uma lista podem ser escolhidos os "Pontos de Amostragem"_ (P.A.) da lista apresentada
C24: Caso necessário, é possível inserir o nome de um novo P.A
C25: Relembra-se que, em especial, para as águas residuais os Valores Limites (VLE) são impostos por ponto de amostragem
C26: A criação de um novo P.A. não considerará valores limites já impostos
B29: Controlo (facultativo) | C29: Caso se deseje incluir o controlo este deverá ser indicado para todos os parâmetros agrupados no referido controlo | H29: Hora Colheita (24:00) | I29: Data Colheita (dd-mm-aaaa) | J29: Tipo de amostra | K29: Área/Zona | L29: Nome Ponto/Designação amostra | M29: Controlo (facultativo) | N29: Parâmetros | O29: Observações (Nota/Parâmetros campo)
I30: 2023-01-16 | J30: Águas_de_Consumo_Humano | K30: ACH TESTE 1 | L30: PA_1 | M30: Analise verificação | N30: Ferro
C31: Será emitido um boletim por controlo | J31: Águas_de_Consumo_Humano | M31: Analise verificação | N31: Desinfectante residual
J32: Águas_de_Consumo_Humano | M32: EXTRA | N32: Turvação
I33: 17-01-20023 | J33: Águas_Residuais | K33: Campanha 1 | L33: ETAR de Cima-Saída | N33: CBO | O33: Amostra muito carregada
N34: CQO
N35: SST
N36: Temperatura | O36: 16.8
N37: Colheita residual simples_ Cliente
B41: Parâmetros | C41: Utilizar lista disponibilizada na célula "i1" | Q41: Águas de Consumo Humano (D.L. N.º 306 de 2007 e 152 de 2017)
J42: Nome Ponto/Designação amostra | K42: Controlo (facultativo) | L42: Parâmetros | N42: Células desprotegida para criação de grupos que podem | Q42: CR1 | R42: E. Coli
J43: PA-1 | L43: Desinfetante residual | N43: Grupo CO1 | O43: RR | R43: Bactérias Coliformes
L44: Cheiro | N44: Alumínio | O44: CBO | R44: Desinfetante residual
L45: Sabor | N45: Ferro | O45: CQO | Q45: CR2_ incluir os parâmetros do grupo CR1 | R45: Cheiro
L46: pH | R46: Sabor
J47: Reservatório | L47: Alumínio | R47: pH
L48: Ferro | R48: Condutividade
R49: Cor
R50: Turvação
R51: Enterococos
C52: Caso a lista não seja apresentada significa que as "macros" não foram ativadas.
C53: Suguere-se a ativação das macros pois para além da lista de parâmetros existem outros alertas e indicações que são apresentados ao utilizador para tem
C54: Uma macro potencialmente perigosa foi bloqueada (microsoft.com)
C56: DESBLOQUEAR UM ÚNICO FICHEIRO
C57: Guardar o ficheiro da requsição de análises no computador.
C58: Com o botão do lado direito do rato sem abiri o ficheiro selecionar "propriedades"
B71: Observações (Nota/Parâmetros campo) | C71: Caso necessário indicar parâmetros medidos em campo ou outras informações
C72: Parâmetros | D72: Observações (Nota/Parâmetros campo)
C73: Ferro
C74: Desinfectante residual
C75: Turvação
C76: CBO | D76: Amostra muito carregada
C77: CQO
C78: SST
C79: Temperatura | D79: 16.8
C80: Colheita residual simples_ Cliente

Sheet Req. Análises
A1: FI-GAT-01.V05 | D1: Entidade Requisitante: | F1: Orçamento/Req. N.º: | O1: Células desprotegida para criação de grupos que podem ser usados para preecher a listagem de parâmetros | Y1: Grupos base modelos | AF1: TIPOS | AG1: Águas_Residuais | AH1: Águas_Residuais_Industriais | AI1: Águas_Superficiais | AJ1: Plano Monitorização Águas Residuais | AK1: Cartaria - Albergaria dos Doze | AL1: Parque Industrial Manuel Da Mota | AM1: ZONA INDUSTRIAL DA FORMIGA - POMBAL | AN1: Zona Industrial dos Meires - Pelariga | AQ1: INDEX(tblVal[Regions],1,1):INDEX(tblVal[Regions],COUNTA(tblVal[Regions])) | AZ1: Fórmula p/ a requisição Dedicada | BP1: MESSAGENS A CONSTAR NOS ALERTAS | BZ1: IF(RIGHT(E3;6)="Humano";$CA$3:$CA$11;IF(RIGHT(E3;3)="ACH";$CB$3:$CB$7;IF(LEFT(E3;15)="Águas_Residuais";$CC$3:$CC$8;IF(E3="Lixiviado";$CD$3:$CD$6;IF(RIGHT(E3;7)="Piscina";$CE$3:$CE$4;"EXTRA"))))) | CX1: Fim células escondidas
C2: Hora Colheita (24:00) | D2: Data Colheita (dd-mm-aaaa) | E2: Tipo de amostra | F2: Área/Zona | G2: Nome Ponto/Designação amostra | H2: Controlo (facultativo) | I2: Parâmetros | J2: Observações (Notas_Parâmetros campo) | K2: Preço | O2: Grupo CO1 | P2: RR | Q2: CO_Rede | Y2: Águas de Consumo Humano (D.L. N.º 306 de 2007 e 152 de 2017) | AA2: Águas Brutas (D.L. N.º 236/98) | AC2: Piscinas | AD2: Residuais | AF2: Águas_de_Consumo_Humano | AQ2: INDEX(tblVal[TIPOS];1;1):INDEX(tblVal[TIPOS];COUNTA(tblVal[TIPOS])) | AZ2: INDIRECT(SUBSTITUTE(SUBSTITUTE(f3;" ";"_"); "-"; "_" )) | BH2: search | BP2: Caixa de selecção | BQ2: Mensagens de alerta | BR2: Escritos diretamente na requsição | BS2: Mensagens de alerta | BZ2: CONTROLO | CA2: Humano_Controlo | CB2: Sub_SuprACH_controlo | CC2: Res_ResInd_Controlo | CD2: Lixiviado_controlo | CE2: Ag_Pisc_controlo
O3: Alumínio | P3: CBO | Q3: cloro livre | Y3: CR1 | Z3: E. Coli | AA3: G1 | AB3: Coliformes Fecais__Ág. Bruta/Residual | AC3: pH | AD3: Aplicação de Amostrador Automático | AF3: Águas_Subterrâneas_ACH | AQ3: _MainList | BF3: =IF(IFERROR(SEARCH($BG$1,BG3,1),0)>0,MAX(BF$2:BF2)+1,0) -> 1 | BG3: 1,2-Dicloroetano | BH3: =IFERROR(VLOOKUP(ROWS(BH$3:BH3),$BF$3:$BG$298,2,0),"") -> 1,2-Dicloroetano | BP3: Pesticidas Totais | BQ3: ver célula BS3 | BR3: Pesticidas Totais | BS3: É necessário inserir os pesticidas individuais da zona geográfica correspondente. | CA3: Analise verificação | CB3: EXTRA | CC3: AMOSTRADOR | CD3: EXTRA | CE3: Apenas microbiologia
O4: Ferro | P4: CQO | Q4: pH | Z4: Bactérias Coliformes | AB4: Coliformes Totais_Ág. Bruta/Residual | AC4: Condutividade | AD4: Colheita residual composta_CESAB | AE4: --> Para uma colheita residual composta_CESAB deve ser considerado o parâmetro "Aplicação de Amostrador Automático" no dia anterior. | AF4: Águas_Superficiais_ACH | AQ4: INDEX(tblVal;0;MATCH(INDEX(tblData[@];COLUMN()-COLUMN(tblData));tblVal[#Headers];0)) | BF4: =IF(IFERROR(SEARCH($BG$1,BG4,1),0)>0,MAX(BF$2:BF3)+1,0) -> 2 | BG4: Absorvância a 254nm | BH4: =IFERROR(VLOOKUP(ROWS(BH$3:BH4),$BF$3:$BG$298,2,0),"") -> Absorvância a 254nm | BR4: Pesticidas | CA4: EXTRA | CB4: Controlo operacional | CC4: EXTRA | CD4: Lixiviado_Mensal | CE4: Legionella
Z5: Desinfetante residual | AB5: pH | AC5: Cloro Residual Livre | AD5: Colheita residual simples_ CESAB | AF5: Águas_Residuais | AQ5: _useList | BF5: =IF(IFERROR(SEARCH($BG$1,BG5,1),0)>0,MAX(BF$2:BF4)+1,0) -> 3 | BG5: Acenafteno | BH5: =IFERROR(VLOOKUP(ROWS(BH$3:BH5),$BF$3:$BG$298,2,0),"") -> Acenafteno | BP5: Trihalometanos | BQ5: ATENÇÃO: Compostos individuais; Clorofórmio; Bromofórmio; Dibromoclorometano; Bromodiclorometano; automaticamente inseridos | BR5: THM | BS5: É necessário inserir os parâmetros individuais: Clorofórmio; Bromofórmio; Dibromoclorometano; Bromodiclorometano. | CA5: Legionella | CB5: G1 | CC5: Controlo operacional | CD5: Lixiviado_ Semestral
Y6: CR2_ incluir os parâmetros do grupo CR1 | Z6: Cheiro | AB6: Oxigénio dissolvido (%) | AC6: Cloro Residual Total | AD6: CBO | AF6: Águas_Residuais_Industriais | AQ6: INDEX(_MainList;1;1):INDEX(_MainList;COUNTA(_MainList)) | BF6: =IF(IFERROR(SEARCH($BG$1,BG6,1),0)>0,MAX(BF$2:BF5)+1,0) -> 4 | BG6: Acenaftileno | BH6: =IFERROR(VLOOKUP(ROWS(BH$3:BH6),$BF$3:$BG$298,2,0),"") -> Acenaftileno | BR6: Trihalometanos | CA6: Radionuclídeos | CB6: G1+G2 | CC6: Boletim 1 | CD6: Lixiviado_ Anual
Z7: Sabor | AB7: Carência Bioquímica de Oxigénio | AC7: Coliformes Totais | AD7: CQO | AF7: Lixiviado | BF7: =IF(IFERROR(SEARCH($BG$1,BG7,1),0)>0,MAX(BF$2:BF6)+1,0) -> 5 | BG7: Ácido Isocianúrico | BH7: =IFERROR(VLOOKUP(ROWS(BH$3:BH7),$BF$3:$BG$298,2,0),"") -> Ácido Isocianúrico | BP7: Hidrocarbonetos Aromáticos Policíclicos (HAP) | BQ7: ATENÇÃO:Compostos individuais Benzo[b]fluoranteno;Benzo[k]fluoranteno;Benzo[ghi]perileno;Indeno[1,2,3-cd]pireno; automaticamente inseridos. | BR7: Hidrocarbonteos Aromáticos | BS7: É necessário inserir os parâmetros individuais: Benzo[b]fluoranteno; Benzo[k]fluoranteno; Benzo[ghi]perileno e Indeno[1,2,3-cd]pireno. | BT7: Se for água bruta deverá inserir também o parâmetro Fluoranteno e o Benzo(a)pireno. | CA7: Desinfeção | CB7: G1+G2+G3 | CC7: Boletim 2
Z8: pH | AB8: Carência Quimica de Oxigénio | AC8: Escherichia Coli | AD8: SST | AF8: Águas_Subterrâneas | BF8: =IF(IFERROR(SEARCH($BG$1,BG8,1),0)>0,MAX(BF$2:BF7)+1,0) -> 6 | BG8: Ácidos Gordos Voláteis | BH8: =IFERROR(VLOOKUP(ROWS(BH$3:BH8),$BF$3:$BG$298,2,0),"") -> Ácidos Gordos Voláteis | BR8: HAP | CA8: Controlo operacional | CC8: Boletim 3
Z9: Condutividade | AB9: Sólidos Suspensos Totais | AC9: Pseudomonas Aeruginosa | AD9: pH | AF9: Águas_Superficiais | BF9: =IF(IFERROR(SEARCH($BG$1,BG9,1),0)>0,MAX(BF$2:BF8)+1,0) -> 7 | BG9: Ácidos Húmicos | BH9: =IFERROR(VLOOKUP(ROWS(BH$3:BH9),$BF$3:$BG$298,2,0),"") -> Ácidos Húmicos | BP9: Legionella spp. | BQ9: Ver célula BS9 | BR9: Legionella | BS9: É necessário inserir o parâmetro Legionella pneumophila. | CA9: CR1
Z10: Cor | AB10: Cor | AC10: Estafilococos Produtores de Coagulase | AD10: Azoto Total | AF10: Águas_de_Piscina | BF10: =IF(IFERROR(SEARCH($BG$1,BG10,1),0)>0,MAX(BF$2:BF9)+1,0) -> 8 | BG10: Acrilamida | BH10: =IFERROR(VLOOKUP(ROWS(BH$3:BH10),$BF$3:$BG$298,2,0),"") -> Acrilamida | BR10: Legionela | CA10: CR2
Z11: Turvação | AB11: Temperatura | AC11: Estafilococos Totais | AD11: Fósforo Total | AF11: Águas_Balneares_Marítimas | BF11: =IF(IFERROR(SEARCH($BG$1,BG11,1),0)>0,MAX(BF$2:BF10)+1,0) -> 9 | BG11: Alacloro | BH11: =IFERROR(VLOOKUP(ROWS(BH$3:BH11),$BF$3:$BG$298,2,0),"") -> Alacloro | BR11: legionela | CA11: CI
Z12: Enterococos | AB12: Condutividade | AC12: Enterococos Fecais | AD12: Óleos e gorduras | AF12: Águas_Balneares_Fluviais | BF12: =IF(IFERROR(SEARCH($BG$1,BG12,1),0)>0,MAX(BF$2:BF11)+1,0) -> 10 | BG12: Alcalinidade à Fenolftaleína | BH12: =IFERROR(VLOOKUP(ROWS(BH$3:BH12),$BF$3:$BG$298,2,0),"") -> Alcalinidade à Fenolftaleína | BP12: Legionella spp. | BQ12: ATENÇÃO: O parâmetro Legionella pneumophila foi automaticamente inserido | BR12: egionella pneumofila | BS12: É necessário inserir o parâmetro Legionella spp. | BT12: Não pode existir a designação "Legionella pneumophila"
Z13: Número de colónias a 22 ºC | AB13: Cheiro, a 25 ºC | AC13: Número de Colónias a 36 ºC | AD13: Colheita residual composta_Cliente | AF13: Águas de Processo | BF13: =IF(IFERROR(SEARCH($BG$1,BG13,1),0)>0,MAX(BF$2:BF12)+1,0) -> 11 | BG13: Alcalinidade Total | BH13: =IFERROR(VLOOKUP(ROWS(BH$3:BH13),$BF$3:$BG$298,2,0),"") -> Alcalinidade Total | BR13: egionela pneumophila
Z14: Número de colónias a 36 ºC | AB14: Nitrato | AD14: Colheita residual simples_ Cliente | AF14: Águas_Doces_Piscícolas | BF14: =IF(IFERROR(SEARCH($BG$1,BG14,1),0)>0,MAX(BF$2:BF13)+1,0) -> 12 | BG14: Aldeídos | BH14: =IFERROR(VLOOKUP(ROWS(BH$3:BH14),$BF$3:$BG$298,2,0),"") -> Aldeídos | BR14: egionella Pneumofila
Y15: CI_incluir os parâmetros do CR1+CR2 | Z15: Clostridium perfringens | AB15: Azoto Amoniacal | AD15: Azoto Total_[Amostragem Pontual] | AE15: --> Amostragem do tipo pontual só se aplicam a tipos de amostras águas residual/industrial e Lixiviados. | AF15: Águas_de_Rega | BF15: =IF(IFERROR(SEARCH($BG$1,BG15,1),0)>0,MAX(BF$2:BF14)+1,0) -> 13 | BG15: Alfa-total | BH15: =IFERROR(VLOOKUP(ROWS(BH$3:BH15),$BF$3:$BG$298,2,0),"") -> Alfa-total | BR15: egionela Pneumophila
Z16: Alumínio | AB16: Cloreto | AD16: Detergentes_[Amostragem Pontual] | AF16: Águas_Pluviais | BF16: =IF(IFERROR(SEARCH($BG$1,BG16,1),0)>0,MAX(BF$2:BF15)+1,0) -> 14 | BG16: Alumínio | BH16: =IFERROR(VLOOKUP(ROWS(BH$3:BH16),$BF$3:$BG$298,2,0),"") -> Alumínio | BP16: Colheita residual composta_CESAB | BQ16: ATENÇÃO: Foi adicionado o parâmetro "Aplicação de Amostrador Automático". A data, desta linha, deve ser alterada para o dia anterior ao levantamento da colheita composta das 24h. | BR16: Colheita composta; composta | BS16: Sempre que se pretenda uma colheita composta deve ser incluido o parâmetro "Aplicação de Amostrador Automático" no dia anterior.
Z17: Amónia | AB17: Fosfato (ortofosfato) | AD17: Fósforo Total_[Amostragem Pontual] | AF17: Lamas | BF17: =IF(IFERROR(SEARCH($BG$1,BG17,1),0)>0,MAX(BF$2:BF16)+1,0) -> 15 | BG17: Amónio | BH17: =IFERROR(VLOOKUP(ROWS(BH$3:BH17),$BF$3:$BG$298,2,0),"") -> Amónio | BR17: Salmonela | BS17: Indicar qual dos seguintes parâmetros deve ser considerado: Salmonela (5000 mL) ou Salmonela (1000 mL)
Z18: Antimónio | AA18: G2_Incluir os parâmetros do grupo G1 | AB18: Ferro dissolvido | AD18: Óleos e Gorduras [Amostragem Pontual] | AF18: Solos | BF18: =IF(IFERROR(SEARCH($BG$1,BG18,1),0)>0,MAX(BF$2:BF17)+1,0) -> 16 | BG18: Antimónio | BH18: =IFERROR(VLOOKUP(ROWS(BH$3:BH18),$BF$3:$BG$298,2,0),"") -> Antimónio | BR18: salmonela
Z19: Arsénio | AB19: Manganês | AD19: pH [Amostragem Pontual] | AF19: Eluato (Decreto Lei 102-D/2020)_Inertes, tabela nº2 | BF19: =IF(IFERROR(SEARCH($BG$1,BG19,1),0)>0,MAX(BF$2:BF18)+1,0) -> 17 | BG19: Antraceno | BH19: =IFERROR(VLOOKUP(ROWS(BH$3:BH19),$BF$3:$BG$298,2,0),"") -> Antraceno | BR19: Salmonella
Z20: Benzeno | AB20: Cobre | AD20: Temperatura [Amostra pontual] | AF20: Resíduo Sólido (Dec. Lei 102-D/2020)_Inertes, tabela nº3 | BF20: =IF(IFERROR(SEARCH($BG$1,BG20,1),0)>0,MAX(BF$2:BF19)+1,0) -> 18 | BG20: AOX | BH20: =IFERROR(VLOOKUP(ROWS(BH$3:BH20),$BF$3:$BG$298,2,0),"") -> AOX
Z21: Benzo(a)pireno | AB21: Zinco | AF21: Eluato (Decreto Lei 102-D/2020)_N.Perig., tabela nº4 | BF21: =IF(IFERROR(SEARCH($BG$1,BG21,1),0)>0,MAX(BF$2:BF20)+1,0) -> 19 | BG21: Arsénio | BH21: =IFERROR(VLOOKUP(ROWS(BH$3:BH21),$BF$3:$BG$298,2,0),"") -> Arsénio | BP21: Dose Indicativa_Cálculo_Radionuclídeos | BQ21: ATENÇÃO: Foram adicionados os radionuclídeos emissores de radição alfa; Polónio 210; Rádio226; Urânio 234 e Urânio 238
Z22: Boro | AB22: Sulfatos | AF22: Residuo Sólido (Decreto Lei 102-D/2020)_N.Perig., tabela nº5 | BF22: =IF(IFERROR(SEARCH($BG$1,BG22,1),0)>0,MAX(BF$2:BF21)+1,0) -> 20 | BG22: Atrazina | BH22: =IFERROR(VLOOKUP(ROWS(BH$3:BH22),$BF$3:$BG$298,2,0),"") -> Atrazina | BR22: Paratião | BS22: Indicar se pretende o Paratião-etil e/ou Paratião-metil.
Z23: Bromatos | AB23: Substâncias Tensioactivas | BF23: =IF(IFERROR(SEARCH($BG$1,BG23,1),0)>0,MAX(BF$2:BF22)+1,0) -> 21 | BG23: Azoto Amoniacal | BH23: =IFERROR(VLOOKUP(ROWS(BH$3:BH23),$BF$3:$BG$298,2,0),"") -> Azoto Amoniacal | BR23: paratião
Z24: Cádmio | AB24: Azoto Kjeldahl | BF24: =IF(IFERROR(SEARCH($BG$1,BG24,1),0)>0,MAX(BF$2:BF23)+1,0) -> 22 | BG24: Azoto Kjeldahl | BH24: =IFERROR(VLOOKUP(ROWS(BH$3:BH24),$BF$3:$BG$298,2,0),"") -> Azoto Kjeldahl | BP24: <> Água Limpa | BQ24: Amostragem do tipo pontual só se aplicam a tipos de amostras Água residual/industrial e Lixiviados.
Z25: Cálcio | AB25: Estreptococos fecais (Enterocos) | BF25: =IF(IFERROR(SEARCH($BG$1,BG25,1),0)>0,MAX(BF$2:BF24)+1,0) -> 23 | BG25: Azoto Nitrico | BH25: =IFERROR(VLOOKUP(ROWS(BH$3:BH25),$BF$3:$BG$298,2,0),"") -> Azoto Nitrico
Z26: Carbono orgânico total | AA26: G3_ incluir os parâmetros do G1+ G2 | AB26: Fluoretos | BF26: =IF(IFERROR(SEARCH($BG$1,BG26,1),0)>0,MAX(BF$2:BF25)+1,0) -> 24 | BG26: Azoto Orgânico | BH26: =IFERROR(VLOOKUP(ROWS(BH$3:BH26),$BF$3:$BG$298,2,0),"") -> Azoto Orgânico
Z27: Cianetos | AB27: Boro | BF27: =IF(IFERROR(SEARCH($BG$1,BG27,1),0)>0,MAX(BF$2:BF26)+1,0) -> 25 | BG27: Azoto Total | BH27: =IFERROR(VLOOKUP(ROWS(BH$3:BH27),$BF$3:$BG$298,2,0),"") -> Azoto Total | BP27: Menssagem qd abre o livro
Z28: Cloretos | AB28: Arsénio | BF28: =IF(IFERROR(SEARCH($BG$1,BG28,1),0)>0,MAX(BF$2:BF27)+1,0) -> 26 | BG28: Azoto Total_[Amostragem Pontual] | BH28: =IFERROR(VLOOKUP(ROWS(BH$3:BH28),$BF$3:$BG$298,2,0),"") -> Azoto Total_[Amostragem Pontual] | BP28: Águas_Residuais | BQ28: É necessário escolher o parâmetro de colheita residual(simples/composta) a considerar.
Z29: Cloritos | AB29: Cádmio | BF29: =IF(IFERROR(SEARCH($BG$1,BG29,1),0)>0,MAX(BF$2:BF28)+1,0) -> 27 | BG29: Bactérias Coliformes | BH29: =IFERROR(VLOOKUP(ROWS(BH$3:BH29),$BF$3:$BG$298,2,0),"") -> Bactérias Coliformes | BP29: Águas_Residuais_Industriais
Z30: Cloratos | AB30: Crómio Total | BF30: =IF(IFERROR(SEARCH($BG$1,BG30,1),0)>0,MAX(BF$2:BF29)+1,0) -> 28 | BG30: Bário | BH30: =IFERROR(VLOOKUP(ROWS(BH$3:BH30),$BF$3:$BG$298,2,0),"") -> Bário | BP30: Lixiviado
Z31: Chumbo sem purga | AB31: Chumbo | BF31: =IF(IFERROR(SEARCH($BG$1,BG31,1),0)>0,MAX(BF$2:BF30)+1,0) -> 29 | BG31: Bentazona | BH31: =IFERROR(VLOOKUP(ROWS(BH$3:BH31),$BF$3:$BG$298,2,0),"") -> Bentazona | BP31: Águas_de_Consumo_Humano | BQ31: Se requisitados parâmetros microbiológicos no âmbito do PCQA/Análises de verificação incluir o parâmetro "Desinfetante residual" ou "Desinfetante Residual_Cliente"
Z32: Níquel sem purga | AB32: Selénio | BF32: =IF(IFERROR(SEARCH($BG$1,BG32,1),0)>0,MAX(BF$2:BF31)+1,0) -> 30 | BG32: Benzeno | BH32: =IFERROR(VLOOKUP(ROWS(BH$3:BH32),$BF$3:$BG$298,2,0),"") -> Benzeno
Z33: Cobre sem purga | AB33: Mercúrio | BF33: =IF(IFERROR(SEARCH($BG$1,BG33,1),0)>0,MAX(BF$2:BF32)+1,0) -> 31 | BG33: Benzo(a)pireno | BH33: =IFERROR(VLOOKUP(ROWS(BH$3:BH33),$BF$3:$BG$298,2,0),"") -> Benzo(a)pireno | BQ33: O conjunto de parâmetros da tabela N.º2 serão considerados na amostra
Z34: Crómio | AB34: Bário | BF34: =IF(IFERROR(SEARCH($BG$1,BG34,1),0)>0,MAX(BF$2:BF33)+1,0) -> 32 | BG34: Benzo(b)fluoranteno | BH34: =IFERROR(VLOOKUP(ROWS(BH$3:BH34),$BF$3:$BG$298,2,0),"") -> Benzo(b)fluoranteno | BQ34: O conjunto de parâmetros da tabela N.º3 serão considerados na amostra
Z35: 1,2 – dicloroetano | AB35: Cianetos | BF35: =IF(IFERROR(SEARCH($BG$1,BG35,1),0)>0,MAX(BF$2:BF34)+1,0) -> 33 | BG35: Benzo(ghi)perileno | BH35: =IFERROR(VLOOKUP(ROWS(BH$3:BH35),$BF$3:$BG$298,2,0),"") -> Benzo(ghi)perileno | BQ35: O conjunto de parâmetros da tabela N.º4 serão considerados na amostra
Z36: Dureza total | AB36: Hidrocarbonetos Dissolvidos e Emulsionados | BF36: =IF(IFERROR(SEARCH($BG$1,BG36,1),0)>0,MAX(BF$2:BF35)+1,0) -> 34 | BG36: Benzo(k)fluoranteno | BH36: =IFERROR(VLOOKUP(ROWS(BH$3:BH36),$BF$3:$BG$298,2,0),"") -> Benzo(k)fluoranteno | BQ36: O conjunto de parâmetros da tabela N.º5 serão considerados na amostra
Z37: Ferro | AB37: Hidrocarbonteos Aromáticos Polinucleares | BF37: =IF(IFERROR(SEARCH($BG$1,BG37,1),0)>0,MAX(BF$2:BF36)+1,0) -> 35 | BG37: Berílio | BH37: =IFERROR(VLOOKUP(ROWS(BH$3:BH37),$BF$3:$BG$298,2,0),"") -> Berílio
Z38: Fluoretos | AB38: Benzo[b]fluoranteno | BF38: =IF(IFERROR(SEARCH($BG$1,BG38,1),0)>0,MAX(BF$2:BF37)+1,0) -> 36 | BG38: Beta Total | BH38: =IFERROR(VLOOKUP(ROWS(BH$3:BH38),$BF$3:$BG$298,2,0),"") -> Beta Total
Z39: HAP | AB39: Benzo[k]fluoranteno | BF39: =IF(IFERROR(SEARCH($BG$1,BG39,1),0)>0,MAX(BF$2:BF38)+1,0) -> 37 | BG39: Bicarbonato | BH39: =IFERROR(VLOOKUP(ROWS(BH$3:BH39),$BF$3:$BG$298,2,0),"") -> Bicarbonato
Z40: Benzo[b]fluoranteno | AB40: Benzo[ghi]perileno | BF40: =IF(IFERROR(SEARCH($BG$1,BG40,1),0)>0,MAX(BF$2:BF39)+1,0) -> 38 | BG40: Biovolume Fitoplantónico Total | BH40: =IFERROR(VLOOKUP(ROWS(BH$3:BH40),$BF$3:$BG$298,2,0),"") -> Biovolume Fitoplantónico Total
Z41: Benzo[k]fluoranteno | AB41: Indeno[1,2,3-cd]pireno | BF41: =IF(IFERROR(SEARCH($BG$1,BG41,1),0)>0,MAX(BF$2:BF40)+1,0) -> 39 | BG41: Boro | BH41: =IFERROR(VLOOKUP(ROWS(BH$3:BH41),$BF$3:$BG$298,2,0),"") -> Boro
Z42: Benzo[ghi]perileno | AB42: Fluoranteno | BF42: =IF(IFERROR(SEARCH($BG$1,BG42,1),0)>0,MAX(BF$2:BF41)+1,0) -> 40 | BG42: Bromatos | BH42: =IFERROR(VLOOKUP(ROWS(BH$3:BH42),$BF$3:$BG$298,2,0),"") -> Bromatos
Z43: Indeno[1,2,3-cd]pireno | AB43: Benzo(a)pireno | BF43: =IF(IFERROR(SEARCH($BG$1,BG43,1),0)>0,MAX(BF$2:BF42)+1,0) -> 41 | BG43: Brometo | BH43: =IFERROR(VLOOKUP(ROWS(BH$3:BH43),$BF$3:$BG$298,2,0),"") -> Brometo
Z44: Manganês | AB44: Pesticidas Totais | AC44: -->Especificar compostos individuais | BF44: =IF(IFERROR(SEARCH($BG$1,BG44,1),0)>0,MAX(BF$2:BF43)+1,0) -> 42 | BG44: Bromo | BH44: =IFERROR(VLOOKUP(ROWS(BH$3:BH44),$BF$3:$BG$298,2,0),"") -> Bromo
Z45: Nitratos | AB45: Substâncias Extraíveis com clorofórmio | BF45: =IF(IFERROR(SEARCH($BG$1,BG45,1),0)>0,MAX(BF$2:BF44)+1,0) -> 43 | BG45: Bromodiclorometano | BH45: =IFERROR(VLOOKUP(ROWS(BH$3:BH45),$BF$3:$BG$298,2,0),"") -> Bromodiclorometano
Z46: Nitritos | AB46: Salmonella_1 Litro | BF46: =IF(IFERROR(SEARCH($BG$1,BG46,1),0)>0,MAX(BF$2:BF45)+1,0) -> 44 | BG46: Bromofórmio | BH46: =IFERROR(VLOOKUP(ROWS(BH$3:BH46),$BF$3:$BG$298,2,0),"") -> Bromofórmio
Z47: Mercúrio | AB47: Salmonella_5 Litro | BF47: =IF(IFERROR(SEARCH($BG$1,BG47,1),0)>0,MAX(BF$2:BF46)+1,0) -> 45 | BG47: BTEX | BH47: =IFERROR(VLOOKUP(ROWS(BH$3:BH47),$BF$3:$BG$298,2,0),"") -> BTEX
Z48: Oxidabilidade | BF48: =IF(IFERROR(SEARCH($BG$1,BG48,1),0)>0,MAX(BF$2:BF47)+1,0) -> 46 | BG48: Cádmio | BH48: =IFERROR(VLOOKUP(ROWS(BH$3:BH48),$BF$3:$BG$298,2,0),"") -> Cádmio
Z49: Pesticidas ( total) | AA49: -->Especificar compostos individuais correspondentes ao concelho. | BF49: =IF(IFERROR(SEARCH($BG$1,BG49,1),0)>0,MAX(BF$2:BF48)+1,0) -> 47 | BG49: Cálcio | BH49: =IFERROR(VLOOKUP(ROWS(BH$3:BH49),$BF$3:$BG$298,2,0),"") -> Cálcio
Z50: Selénio | BF50: =IF(IFERROR(SEARCH($BG$1,BG50,1),0)>0,MAX(BF$2:BF49)+1,0) -> 48 | BG50: Cálcio Total | BH50: =IFERROR(VLOOKUP(ROWS(BH$3:BH50),$BF$3:$BG$298,2,0),"") -> Cálcio Total
Z51: Sódio | BF51: =IF(IFERROR(SEARCH($BG$1,BG51,1),0)>0,MAX(BF$2:BF50)+1,0) -> 49 | BG51: Cálculo da DI_Radionuclídeos | BH51: =IFERROR(VLOOKUP(ROWS(BH$3:BH51),$BF$3:$BG$298,2,0),"") -> Cálculo da DI_Radionuclídeos
Z52: Sulfatos | BF52: =IF(IFERROR(SEARCH($BG$1,BG52,1),0)>0,MAX(BF$2:BF51)+1,0) -> 50 | BG52: Carbonato | BH52: =IFERROR(VLOOKUP(ROWS(BH$3:BH52),$BF$3:$BG$298,2,0),"") -> Carbonato
Z53: Soma do Tetracloroeteno e Tricloroeteno | BF53: =IF(IFERROR(SEARCH($BG$1,BG53,1),0)>0,MAX(BF$2:BF52)+1,0) -> 51 | BG53: Carbono Orgânico Dissolvido | BH53: =IFERROR(VLOOKUP(ROWS(BH$3:BH53),$BF$3:$BG$298,2,0),"") -> Carbono Orgânico Dissolvido
Z54: Tetracloroeteno | BF54: =IF(IFERROR(SEARCH($BG$1,BG54,1),0)>0,MAX(BF$2:BF53)+1,0) -> 52 | BG54: Carbono Orgânico Total | BH54: =IFERROR(VLOOKUP(ROWS(BH$3:BH54),$BF$3:$BG$298,2,0),"") -> Carbono Orgânico Total
Z55: Tricloroeteno | BF55: =IF(IFERROR(SEARCH($BG$1,BG55,1),0)>0,MAX(BF$2:BF54)+1,0) -> 53 | BG55: Carência Bioquímica de Oxigénio | BH55: =IFERROR(VLOOKUP(ROWS(BH$3:BH55),$BF$3:$BG$298,2,0),"") -> Carência Bioquímica de Oxigénio
Z56: Soma Conc. Compostos Individuais THM [BAIXA] | BF56: =IF(IFERROR(SEARCH($BG$1,BG56,1),0)>0,MAX(BF$2:BF55)+1,0) -> 54 | BG56: CBO Solúvel/dissolvido | BH56: =IFERROR(VLOOKUP(ROWS(BH$3:BH56),$BF$3:$BG$298,2,0),"") -> CBO Solúvel/dissolvido
Z57: clorofórmio | BF57: =IF(IFERROR(SEARCH($BG$1,BG57,1),0)>0,MAX(BF$2:BF56)+1,0) -> 55 | BG57: Carência Quimica de Oxigénio | BH57: =IFERROR(VLOOKUP(ROWS(BH$3:BH57),$BF$3:$BG$298,2,0),"") -> Carência Quimica de Oxigénio
Z58: bromofórmio | BF58: =IF(IFERROR(SEARCH($BG$1,BG58,1),0)>0,MAX(BF$2:BF57)+1,0) -> 56 | BG58: CQO Solúvel/dissolvido | BH58: =IFERROR(VLOOKUP(ROWS(BH$3:BH58),$BF$3:$BG$298,2,0),"") -> CQO Solúvel/dissolvido
Z59: dibromoclorometano | BF59: =IF(IFERROR(SEARCH($BG$1,BG59,1),0)>0,MAX(BF$2:BF58)+1,0) -> 57 | BG59: CBO | BH59: =IFERROR(VLOOKUP(ROWS(BH$3:BH59),$BF$3:$BG$298,2,0),"") -> CBO
Z60: bromodiclorometano | BF60: =IF(IFERROR(SEARCH($BG$1,BG60,1),0)>0,MAX(BF$2:BF59)+1,0) -> 58 | BG60: Césio 137 | BH60: =IFERROR(VLOOKUP(ROWS(BH$3:BH60),$BF$3:$BG$298,2,0),"") -> Césio 137
Z61: Dose indicativa | AA61: --> Não pressupõe a análise dos radionuclídeos. Resultado inferido a partir do resultado da radiação alfa-total. | BF61: =IF(IFERROR(SEARCH($BG$1,BG61,1),0)>0,MAX(BF$2:BF60)+1,0) -> 59 | BG61: Cheiro (diluição 1:20)-Água residual | BH61: =IFERROR(VLOOKUP(ROWS(BH$3:BH61),$BF$3:$BG$298,2,0),"") -> Cheiro (diluição 1:20)-Água residual
Z62: Alfa-total | BF62: =IF(IFERROR(SEARCH($BG$1,BG62,1),0)>0,MAX(BF$2:BF61)+1,0) -> 60 | BG62: Cheiro, a 25ºC-Ág.não residual | BH62: =IFERROR(VLOOKUP(ROWS(BH$3:BH62),$BF$3:$BG$298,2,0),"") -> Cheiro, a 25ºC-Ág.não residual
Z63: Beta-total | AA63: --> A ERSAR concedeu automaticamente a dispensa da pesquisa deste parâmetro em todos os PE/ZA. | BF63: =IF(IFERROR(SEARCH($BG$1,BG63,1),0)>0,MAX(BF$2:BF62)+1,0) -> 61 | BG63: Chumbo | BH63: =IFERROR(VLOOKUP(ROWS(BH$3:BH63),$BF$3:$BG$298,2,0),"") -> Chumbo
Z64: Radão | BF64: =IF(IFERROR(SEARCH($BG$1,BG64,1),0)>0,MAX(BF$2:BF63)+1,0) -> 62 | BG64: Chumbo_PCQA_com Purga | BH64: =IFERROR(VLOOKUP(ROWS(BH$3:BH64),$BF$3:$BG$298,2,0),"") -> Chumbo_PCQA_com Purga
Z65: Acrilamida | AA65: --> Pode ser controlado(a) pelo cálculo da migração máxima do polímero, se usado, e em função das especificações fornecidas pelo fabricante. | BF65: =IF(IFERROR(SEARCH($BG$1,BG65,1),0)>0,MAX(BF$2:BF64)+1,0) -> 63 | BG65: Chumbo_PCQA_sem Purga | BH65: =IFERROR(VLOOKUP(ROWS(BH$3:BH65),$BF$3:$BG$298,2,0),"") -> Chumbo_PCQA_sem Purga
Z66: Epicloridrina | AA66: --> Pode ser controlado(a) pelo cálculo da migração máxima do polímero, se usado, e em função das especificações fornecidas pelo fabricante. | BF66: =IF(IFERROR(SEARCH($BG$1,BG66,1),0)>0,MAX(BF$2:BF65)+1,0) -> 64 | BG66: Cianeto | BH66: =IFERROR(VLOOKUP(ROWS(BH$3:BH66),$BF$3:$BG$298,2,0),"") -> Cianeto
Z67: Cloreto de vinilo | AA67: --> Pode ser controlado(a) pelo cálculo da migração máxima do polímero, se usado, e em função das especificações fornecidas pelo fabricante. | BF67: =IF(IFERROR(SEARCH($BG$1,BG67,1),0)>0,MAX(BF$2:BF66)+1,0) -> 65 | BG67: Cianeto Livre | BH67: =IFERROR(VLOOKUP(ROWS(BH$3:BH67),$BF$3:$BG$298,2,0),"") -> Cianeto Livre
Z68: Trítio | AA68: --> A ERSAR concedeu automaticamente a dispensa da pesquisa do Trítio em todos os PE/ZA. | BF68: =IF(IFERROR(SEARCH($BG$1,BG68,1),0)>0,MAX(BF$2:BF67)+1,0) -> 66 | BG68: Cianeto Total | BH68: =IFERROR(VLOOKUP(ROWS(BH$3:BH68),$BF$3:$BG$298,2,0),"") -> Cianeto Total
BF69: =IF(IFERROR(SEARCH($BG$1,BG69,1),0)>0,MAX(BF$2:BF68)+1,0) -> 67 | BG69: Cianobactérias | BH69: =IFERROR(VLOOKUP(ROWS(BH$3:BH69),$BF$3:$BG$298,2,0),"") -> Cianobactérias
BF70: =IF(IFERROR(SEARCH($BG$1,BG70,1),0)>0,MAX(BF$2:BF69)+1,0) -> 68 | BG70: Cimoxanil | BH70: =IFERROR(VLOOKUP(ROWS(BH$3:BH70),$BF$3:$BG$298,2,0),"") -> Cimoxanil
BF71: =IF(IFERROR(SEARCH($BG$1,BG71,1),0)>0,MAX(BF$2:BF70)+1,0) -> 69 | BG71: Clorato | BH71: =IFERROR(VLOOKUP(ROWS(BH$3:BH71),$BF$3:$BG$298,2,0),"") -> Clorato
BF72: =IF(IFERROR(SEARCH($BG$1,BG72,1),0)>0,MAX(BF$2:BF71)+1,0) -> 70 | BG72: Cloreto | BH72: =IFERROR(VLOOKUP(ROWS(BH$3:BH72),$BF$3:$BG$298,2,0),"") -> Cloreto
BF73: =IF(IFERROR(SEARCH($BG$1,BG73,1),0)>0,MAX(BF$2:BF72)+1,0) -> 71 | BG73: Cloreto de Vinilo | BH73: =IFERROR(VLOOKUP(ROWS(BH$3:BH73),$BF$3:$BG$298,2,0),"") -> Cloreto de Vinilo
BF74: =IF(IFERROR(SEARCH($BG$1,BG74,1),0)>0,MAX(BF$2:BF73)+1,0) -> 72 | BG74: Clorito | BH74: =IFERROR(VLOOKUP(ROWS(BH$3:BH74),$BF$3:$BG$298,2,0),"") -> Clorito
BF75: =IF(IFERROR(SEARCH($BG$1,BG75,1),0)>0,MAX(BF$2:BF74)+1,0) -> 73 | BG75: Cloro Combinado | BH75: =IFERROR(VLOOKUP(ROWS(BH$3:BH75),$BF$3:$BG$298,2,0),"") -> Cloro Combinado
BF76: =IF(IFERROR(SEARCH($BG$1,BG76,1),0)>0,MAX(BF$2:BF75)+1,0) -> 74 | BG76: Cloro Orgânico Total Extraível | BH76: =IFERROR(VLOOKUP(ROWS(BH$3:BH76),$BF$3:$BG$298,2,0),"") -> Cloro Orgânico Total Extraível
BF77: =IF(IFERROR(SEARCH($BG$1,BG77,1),0)>0,MAX(BF$2:BF76)+1,0) -> 75 | BG77: Cloro Residual Livre | BH77: =IFERROR(VLOOKUP(ROWS(BH$3:BH77),$BF$3:$BG$298,2,0),"") -> Cloro Residual Livre
BF78: =IF(IFERROR(SEARCH($BG$1,BG78,1),0)>0,MAX(BF$2:BF77)+1,0) -> 76 | BG78: Cloro Residual Total | BH78: =IFERROR(VLOOKUP(ROWS(BH$3:BH78),$BF$3:$BG$298,2,0),"") -> Cloro Residual Total
BF79: =IF(IFERROR(SEARCH($BG$1,BG79,1),0)>0,MAX(BF$2:BF78)+1,0) -> 77 | BG79: Clorofenóis | BH79: =IFERROR(VLOOKUP(ROWS(BH$3:BH79),$BF$3:$BG$298,2,0),"") -> Clorofenóis
BF80: =IF(IFERROR(SEARCH($BG$1,BG80,1),0)>0,MAX(BF$2:BF79)+1,0) -> 78 | BG80: Clorofila a | BH80: =IFERROR(VLOOKUP(ROWS(BH$3:BH80),$BF$3:$BG$298,2,0),"") -> Clorofila a
BF81: =IF(IFERROR(SEARCH($BG$1,BG81,1),0)>0,MAX(BF$2:BF80)+1,0) -> 79 | BG81: Clorofórmio | BH81: =IFERROR(VLOOKUP(ROWS(BH$3:BH81),$BF$3:$BG$298,2,0),"") -> Clorofórmio
BF82: =IF(IFERROR(SEARCH($BG$1,BG82,1),0)>0,MAX(BF$2:BF81)+1,0) -> 80 | BG82: Clorpirifos | BH82: =IFERROR(VLOOKUP(ROWS(BH$3:BH82),$BF$3:$BG$298,2,0),"") -> Clorpirifos
BF83: =IF(IFERROR(SEARCH($BG$1,BG83,1),0)>0,MAX(BF$2:BF82)+1,0) -> 81 | BG83: Clortalonil | BH83: =IFERROR(VLOOKUP(ROWS(BH$3:BH83),$BF$3:$BG$298,2,0),"") -> Clortalonil
BF84: =IF(IFERROR(SEARCH($BG$1,BG84,1),0)>0,MAX(BF$2:BF83)+1,0) -> 82 | BG84: Clortolurão | BH84: =IFERROR(VLOOKUP(ROWS(BH$3:BH84),$BF$3:$BG$298,2,0),"") -> Clortolurão
BF85: =IF(IFERROR(SEARCH($BG$1,BG85,1),0)>0,MAX(BF$2:BF84)+1,0) -> 83 | BG85: Clostrídium Perfringens (incluindo esporos) | BH85: =IFERROR(VLOOKUP(ROWS(BH$3:BH85),$BF$3:$BG$298,2,0),"") -> Clostrídium Perfringens (incluindo esporos)
BF86: =IF(IFERROR(SEARCH($BG$1,BG86,1),0)>0,MAX(BF$2:BF85)+1,0) -> 84 | BG86: Cobalto | BH86: =IFERROR(VLOOKUP(ROWS(BH$3:BH86),$BF$3:$BG$298,2,0),"") -> Cobalto
BF87: =IF(IFERROR(SEARCH($BG$1,BG87,1),0)>0,MAX(BF$2:BF86)+1,0) -> 85 | BG87: Cobre | BH87: =IFERROR(VLOOKUP(ROWS(BH$3:BH87),$BF$3:$BG$298,2,0),"") -> Cobre
BF88: =IF(IFERROR(SEARCH($BG$1,BG88,1),0)>0,MAX(BF$2:BF87)+1,0) -> 86 | BG88: Cobre Dissolvido | BH88: =IFERROR(VLOOKUP(ROWS(BH$3:BH88),$BF$3:$BG$298,2,0),"") -> Cobre Dissolvido
BF89: =IF(IFERROR(SEARCH($BG$1,BG89,1),0)>0,MAX(BF$2:BF88)+1,0) -> 87 | BG89: Cobre_PCQA_com Purga | BH89: =IFERROR(VLOOKUP(ROWS(BH$3:BH89),$BF$3:$BG$298,2,0),"") -> Cobre_PCQA_com Purga
BF90: =IF(IFERROR(SEARCH($BG$1,BG90,1),0)>0,MAX(BF$2:BF89)+1,0) -> 88 | BG90: Cobre_PCQA_sem Purga | BH90: =IFERROR(VLOOKUP(ROWS(BH$3:BH90),$BF$3:$BG$298,2,0),"") -> Cobre_PCQA_sem Purga
BF91: =IF(IFERROR(SEARCH($BG$1,BG91,1),0)>0,MAX(BF$2:BF90)+1,0) -> 89 | BG91: Colheita pelo CESAB_F.Q. | BH91: =IFERROR(VLOOKUP(ROWS(BH$3:BH91),$BF$3:$BG$298,2,0),"") -> Colheita pelo CESAB_F.Q.
BF92: =IF(IFERROR(SEARCH($BG$1,BG92,1),0)>0,MAX(BF$2:BF91)+1,0) -> 90 | BG92: Colheita pelo CESAB_Microbiológica | BH92: =IFERROR(VLOOKUP(ROWS(BH$3:BH92),$BF$3:$BG$298,2,0),"") -> Colheita pelo CESAB_Microbiológica
BF93: =IF(IFERROR(SEARCH($BG$1,BG93,1),0)>0,MAX(BF$2:BF92)+1,0) -> 91 | BG93: Colheita residual composta_CESAB | BH93: =IFERROR(VLOOKUP(ROWS(BH$3:BH93),$BF$3:$BG$298,2,0),"") -> Colheita residual composta_CESAB
BF94: =IF(IFERROR(SEARCH($BG$1,BG94,1),0)>0,MAX(BF$2:BF93)+1,0) -> 92 | BG94: Colheita residual composta_Cliente | BH94: =IFERROR(VLOOKUP(ROWS(BH$3:BH94),$BF$3:$BG$298,2,0),"") -> Colheita residual composta_Cliente
BF95: =IF(IFERROR(SEARCH($BG$1,BG95,1),0)>0,MAX(BF$2:BF94)+1,0) -> 93 | BG95: Colheita residual simples_ CESAB | BH95: =IFERROR(VLOOKUP(ROWS(BH$3:BH95),$BF$3:$BG$298,2,0),"") -> Colheita residual simples_ CESAB
BF96: =IF(IFERROR(SEARCH($BG$1,BG96,1),0)>0,MAX(BF$2:BF95)+1,0) -> 94 | BG96: Colheita residual simples_ Cliente | BH96: =IFERROR(VLOOKUP(ROWS(BH$3:BH96),$BF$3:$BG$298,2,0),"") -> Colheita residual simples_ Cliente
BF97: =IF(IFERROR(SEARCH($BG$1,BG97,1),0)>0,MAX(BF$2:BF96)+1,0) -> 95 | BG97: Coliformes Fecais_Ág. Bruta/residual | BH97: =IFERROR(VLOOKUP(ROWS(BH$3:BH97),$BF$3:$BG$298,2,0),"") -> Coliformes Fecais_Ág. Bruta/residual
BF98: =IF(IFERROR(SEARCH($BG$1,BG98,1),0)>0,MAX(BF$2:BF97)+1,0) -> 96 | BG98: Coliformes Totais_Ág. Bruta/Residual | BH98: =IFERROR(VLOOKUP(ROWS(BH$3:BH98),$BF$3:$BG$298,2,0),"") -> Coliformes Totais_Ág. Bruta/Residual
BF99: =IF(IFERROR(SEARCH($BG$1,BG99,1),0)>0,MAX(BF$2:BF98)+1,0) -> 97 | BG99: Condutividade | BH99: =IFERROR(VLOOKUP(ROWS(BH$3:BH99),$BF$3:$BG$298,2,0),"") -> Condutividade
BF100: =IF(IFERROR(SEARCH($BG$1,BG100,1),0)>0,MAX(BF$2:BF99)+1,0) -> 98 | BG100: Cor | BH100: =IFERROR(VLOOKUP(ROWS(BH$3:BH100),$BF$3:$BG$298,2,0),"") -> Cor
BF101: =IF(IFERROR(SEARCH($BG$1,BG101,1),0)>0,MAX(BF$2:BF100)+1,0) -> 99 | BG101: Cor (diluição 1:20)-Ág. Residual_Qualitativo | BH101: =IFERROR(VLOOKUP(ROWS(BH$3:BH101),$BF$3:$BG$298,2,0),"") -> Cor (diluição 1:20)-Ág. Residual_Qualitativo
BF102: =IF(IFERROR(SEARCH($BG$1,BG102,1),0)>0,MAX(BF$2:BF101)+1,0) -> 100 | BG102: CQO | BH102: =IFERROR(VLOOKUP(ROWS(BH$3:BH102),$BF$3:$BG$298,2,0),"") -> CQO
BF103: =IF(IFERROR(SEARCH($BG$1,BG103,1),0)>0,MAX(BF$2:BF102)+1,0) -> 101 | BG103: Criseno | BH103: =IFERROR(VLOOKUP(ROWS(BH$3:BH103),$BF$3:$BG$298,2,0),"") -> Criseno
BF104: =IF(IFERROR(SEARCH($BG$1,BG104,1),0)>0,MAX(BF$2:BF103)+1,0) -> 102 | BG104: Crómio | BH104: =IFERROR(VLOOKUP(ROWS(BH$3:BH104),$BF$3:$BG$298,2,0),"") -> Crómio
BF105: =IF(IFERROR(SEARCH($BG$1,BG105,1),0)>0,MAX(BF$2:BF104)+1,0) -> 103 | BG105: Crómio Hexavalente | BH105: =IFERROR(VLOOKUP(ROWS(BH$3:BH105),$BF$3:$BG$298,2,0),"") -> Crómio Hexavalente
BF106: =IF(IFERROR(SEARCH($BG$1,BG106,1),0)>0,MAX(BF$2:BF105)+1,0) -> 104 | BG106: Crómio Trivalente | BH106: =IFERROR(VLOOKUP(ROWS(BH$3:BH106),$BF$3:$BG$298,2,0),"") -> Crómio Trivalente
BF107: =IF(IFERROR(SEARCH($BG$1,BG107,1),0)>0,MAX(BF$2:BF106)+1,0) -> 105 | BG107: Cryptosporidium spp | BH107: =IFERROR(VLOOKUP(ROWS(BH$3:BH107),$BF$3:$BG$298,2,0),"") -> Cryptosporidium spp
BF108: =IF(IFERROR(SEARCH($BG$1,BG108,1),0)>0,MAX(BF$2:BF107)+1,0) -> 106 | BG108: Desetilatrazina | BH108: =IFERROR(VLOOKUP(ROWS(BH$3:BH108),$BF$3:$BG$298,2,0),"") -> Desetilatrazina
BF109: =IF(IFERROR(SEARCH($BG$1,BG109,1),0)>0,MAX(BF$2:BF108)+1,0) -> 107 | BG109: Desetilterbutilazina | BH109: =IFERROR(VLOOKUP(ROWS(BH$3:BH109),$BF$3:$BG$298,2,0),"") -> Desetilterbutilazina
BF110: =IF(IFERROR(SEARCH($BG$1,BG110,1),0)>0,MAX(BF$2:BF109)+1,0) -> 108 | BG110: Desinfectante residual | BH110: =IFERROR(VLOOKUP(ROWS(BH$3:BH110),$BF$3:$BG$298,2,0),"") -> Desinfectante residual
BF111: =IF(IFERROR(SEARCH($BG$1,BG111,1),0)>0,MAX(BF$2:BF110)+1,0) -> 109 | BG111: Desinfetante Residual_Cliente | BH111: =IFERROR(VLOOKUP(ROWS(BH$3:BH111),$BF$3:$BG$298,2,0),"") -> Desinfetante Residual_Cliente
BF112: =IF(IFERROR(SEARCH($BG$1,BG112,1),0)>0,MAX(BF$2:BF111)+1,0) -> 110 | BG112: Detergentes | BH112: =IFERROR(VLOOKUP(ROWS(BH$3:BH112),$BF$3:$BG$298,2,0),"") -> Detergentes
BF113: =IF(IFERROR(SEARCH($BG$1,BG113,1),0)>0,MAX(BF$2:BF112)+1,0) -> 111 | BG113: Detergentes_[Amostragem Pontual] | BH113: =IFERROR(VLOOKUP(ROWS(BH$3:BH113),$BF$3:$BG$298,2,0),"") -> Detergentes_[Amostragem Pontual]
BF114: =IF(IFERROR(SEARCH($BG$1,BG114,1),0)>0,MAX(BF$2:BF113)+1,0) -> 112 | BG114: Diazinão | BH114: =IFERROR(VLOOKUP(ROWS(BH$3:BH114),$BF$3:$BG$298,2,0),"") -> Diazinão
BF115: =IF(IFERROR(SEARCH($BG$1,BG115,1),0)>0,MAX(BF$2:BF114)+1,0) -> 113 | BG115: Dibromoclorometano | BH115: =IFERROR(VLOOKUP(ROWS(BH$3:BH115),$BF$3:$BG$298,2,0),"") -> Dibromoclorometano
BF116: =IF(IFERROR(SEARCH($BG$1,BG116,1),0)>0,MAX(BF$2:BF115)+1,0) -> 114 | BG116: Diclorometano | BH116: =IFERROR(VLOOKUP(ROWS(BH$3:BH116),$BF$3:$BG$298,2,0),"") -> Diclorometano
BF117: =IF(IFERROR(SEARCH($BG$1,BG117,1),0)>0,MAX(BF$2:BF116)+1,0) -> 115 | BG117: Dieldrina | BH117: =IFERROR(VLOOKUP(ROWS(BH$3:BH117),$BF$3:$BG$298,2,0),"") -> Dieldrina
BF118: =IF(IFERROR(SEARCH($BG$1,BG118,1),0)>0,MAX(BF$2:BF117)+1,0) -> 116 | BG118: Dimetoato | BH118: =IFERROR(VLOOKUP(ROWS(BH$3:BH118),$BF$3:$BG$298,2,0),"") -> Dimetoato
BF119: =IF(IFERROR(SEARCH($BG$1,BG119,1),0)>0,MAX(BF$2:BF118)+1,0) -> 117 | BG119: Dióxido de Carbono | BH119: =IFERROR(VLOOKUP(ROWS(BH$3:BH119),$BF$3:$BG$298,2,0),"") -> Dióxido de Carbono
BF120: =IF(IFERROR(SEARCH($BG$1,BG120,1),0)>0,MAX(BF$2:BF119)+1,0) -> 118 | BG120: Dióxido de Cloro | BH120: =IFERROR(VLOOKUP(ROWS(BH$3:BH120),$BF$3:$BG$298,2,0),"") -> Dióxido de Cloro
BF121: =IF(IFERROR(SEARCH($BG$1,BG121,1),0)>0,MAX(BF$2:BF120)+1,0) -> 119 | BG121: Diurão | BH121: =IFERROR(VLOOKUP(ROWS(BH$3:BH121),$BF$3:$BG$298,2,0),"") -> Diurão
BF122: =IF(IFERROR(SEARCH($BG$1,BG122,1),0)>0,MAX(BF$2:BF121)+1,0) -> 120 | BG122: Dose Indicativa_Cálculo_Radionuclídeos | BH122: =IFERROR(VLOOKUP(ROWS(BH$3:BH122),$BF$3:$BG$298,2,0),"") -> Dose Indicativa_Cálculo_Radionuclídeos
BF123: =IF(IFERROR(SEARCH($BG$1,BG123,1),0)>0,MAX(BF$2:BF122)+1,0) -> 121 | BG123: Dose Indicativa_CI (mS/ano) | BH123: =IFERROR(VLOOKUP(ROWS(BH$3:BH123),$BF$3:$BG$298,2,0),"") -> Dose Indicativa_CI (mS/ano)
BF124: =IF(IFERROR(SEARCH($BG$1,BG124,1),0)>0,MAX(BF$2:BF123)+1,0) -> 122 | BG124: Dureza Total | BH124: =IFERROR(VLOOKUP(ROWS(BH$3:BH124),$BF$3:$BG$298,2,0),"") -> Dureza Total
BF125: =IF(IFERROR(SEARCH($BG$1,BG125,1),0)>0,MAX(BF$2:BF124)+1,0) -> 123 | BG125: Enterococos fecais | BH125: =IFERROR(VLOOKUP(ROWS(BH$3:BH125),$BF$3:$BG$298,2,0),"") -> Enterococos fecais
BF126: =IF(IFERROR(SEARCH($BG$1,BG126,1),0)>0,MAX(BF$2:BF125)+1,0) -> 124 | BG126: Enxofre | BH126: =IFERROR(VLOOKUP(ROWS(BH$3:BH126),$BF$3:$BG$298,2,0),"") -> Enxofre
BF127: =IF(IFERROR(SEARCH($BG$1,BG127,1),0)>0,MAX(BF$2:BF126)+1,0) -> 125 | BG127: Epicloridrina | BH127: =IFERROR(VLOOKUP(ROWS(BH$3:BH127),$BF$3:$BG$298,2,0),"") -> Epicloridrina
BF128: =IF(IFERROR(SEARCH($BG$1,BG128,1),0)>0,MAX(BF$2:BF127)+1,0) -> 126 | BG128: EPTC | BH128: =IFERROR(VLOOKUP(ROWS(BH$3:BH128),$BF$3:$BG$298,2,0),"") -> EPTC
BF129: =IF(IFERROR(SEARCH($BG$1,BG129,1),0)>0,MAX(BF$2:BF128)+1,0) -> 127 | BG129: Escherichia coli | BH129: =IFERROR(VLOOKUP(ROWS(BH$3:BH129),$BF$3:$BG$298,2,0),"") -> Escherichia coli
BF130: =IF(IFERROR(SEARCH($BG$1,BG130,1),0)>0,MAX(BF$2:BF129)+1,0) -> 128 | BG130: Estafilococos Produtores de Coagulase | BH130: =IFERROR(VLOOKUP(ROWS(BH$3:BH130),$BF$3:$BG$298,2,0),"") -> Estafilococos Produtores de Coagulase
BF131: =IF(IFERROR(SEARCH($BG$1,BG131,1),0)>0,MAX(BF$2:BF130)+1,0) -> 129 | BG131: Estafilococos Totais | BH131: =IFERROR(VLOOKUP(ROWS(BH$3:BH131),$BF$3:$BG$298,2,0),"") -> Estafilococos Totais
BF132: =IF(IFERROR(SEARCH($BG$1,BG132,1),0)>0,MAX(BF$2:BF131)+1,0) -> 130 | BG132: Estanho | BH132: =IFERROR(VLOOKUP(ROWS(BH$3:BH132),$BF$3:$BG$298,2,0),"") -> Estanho
BF133: =IF(IFERROR(SEARCH($BG$1,BG133,1),0)>0,MAX(BF$2:BF132)+1,0) -> 131 | BG133: Estreptococos Fecais (Enterococos) | BH133: =IFERROR(VLOOKUP(ROWS(BH$3:BH133),$BF$3:$BG$298,2,0),"") -> Estreptococos Fecais (Enterococos)
BF134: =IF(IFERROR(SEARCH($BG$1,BG134,1),0)>0,MAX(BF$2:BF133)+1,0) -> 132 | BG134: Estrôncio | BH134: =IFERROR(VLOOKUP(ROWS(BH$3:BH134),$BF$3:$BG$298,2,0),"") -> Estrôncio
BF135: =IF(IFERROR(SEARCH($BG$1,BG135,1),0)>0,MAX(BF$2:BF134)+1,0) -> 133 | BG135: Estrôncio 90 | BH135: =IFERROR(VLOOKUP(ROWS(BH$3:BH135),$BF$3:$BG$298,2,0),"") -> Estrôncio 90
BF136: =IF(IFERROR(SEARCH($BG$1,BG136,1),0)>0,MAX(BF$2:BF135)+1,0) -> 134 | BG136: Etião | BH136: =IFERROR(VLOOKUP(ROWS(BH$3:BH136),$BF$3:$BG$298,2,0),"") -> Etião
BF137: =IF(IFERROR(SEARCH($BG$1,BG137,1),0)>0,MAX(BF$2:BF136)+1,0) -> 135 | BG137: Etilbenzeno | BH137: =IFERROR(VLOOKUP(ROWS(BH$3:BH137),$BF$3:$BG$298,2,0),"") -> Etilbenzeno
BF138: =IF(IFERROR(SEARCH($BG$1,BG138,1),0)>0,MAX(BF$2:BF137)+1,0) -> 136 | BG138: Fenantreno | BH138: =IFERROR(VLOOKUP(ROWS(BH$3:BH138),$BF$3:$BG$298,2,0),"") -> Fenantreno
BF139: =IF(IFERROR(SEARCH($BG$1,BG139,1),0)>0,MAX(BF$2:BF138)+1,0) -> 137 | BG139: Fenóis | BH139: =IFERROR(VLOOKUP(ROWS(BH$3:BH139),$BF$3:$BG$298,2,0),"") -> Fenóis
BF140: =IF(IFERROR(SEARCH($BG$1,BG140,1),0)>0,MAX(BF$2:BF139)+1,0) -> 138 | BG140: Ferro | BH140: =IFERROR(VLOOKUP(ROWS(BH$3:BH140),$BF$3:$BG$298,2,0),"") -> Ferro
BF141: =IF(IFERROR(SEARCH($BG$1,BG141,1),0)>0,MAX(BF$2:BF140)+1,0) -> 139 | BG141: Ferro (III) | BH141: =IFERROR(VLOOKUP(ROWS(BH$3:BH141),$BF$3:$BG$298,2,0),"") -> Ferro (III)
BF142: =IF(IFERROR(SEARCH($BG$1,BG142,1),0)>0,MAX(BF$2:BF141)+1,0) -> 140 | BG142: Ferro dissolvido | BH142: =IFERROR(VLOOKUP(ROWS(BH$3:BH142),$BF$3:$BG$298,2,0),"") -> Ferro dissolvido
BF143: =IF(IFERROR(SEARCH($BG$1,BG143,1),0)>0,MAX(BF$2:BF142)+1,0) -> 141 | BG143: Fitoplancton total | BH143: =IFERROR(VLOOKUP(ROWS(BH$3:BH143),$BF$3:$BG$298,2,0),"") -> Fitoplancton total
BF144: =IF(IFERROR(SEARCH($BG$1,BG144,1),0)>0,MAX(BF$2:BF143)+1,0) -> 142 | BG144: Fluoranteno | BH144: =IFERROR(VLOOKUP(ROWS(BH$3:BH144),$BF$3:$BG$298,2,0),"") -> Fluoranteno
BF145: =IF(IFERROR(SEARCH($BG$1,BG145,1),0)>0,MAX(BF$2:BF144)+1,0) -> 143 | BG145: Fluoretos | BH145: =IFERROR(VLOOKUP(ROWS(BH$3:BH145),$BF$3:$BG$298,2,0),"") -> Fluoretos
BF146: =IF(IFERROR(SEARCH($BG$1,BG146,1),0)>0,MAX(BF$2:BF145)+1,0) -> 144 | BG146: Fosfato | BH146: =IFERROR(VLOOKUP(ROWS(BH$3:BH146),$BF$3:$BG$298,2,0),"") -> Fosfato
BF147: =IF(IFERROR(SEARCH($BG$1,BG147,1),0)>0,MAX(BF$2:BF146)+1,0) -> 145 | BG147: Fósforo Total | BH147: =IFERROR(VLOOKUP(ROWS(BH$3:BH147),$BF$3:$BG$298,2,0),"") -> Fósforo Total
BF148: =IF(IFERROR(SEARCH($BG$1,BG148,1),0)>0,MAX(BF$2:BF147)+1,0) -> 146 | BG148: Fósforo Total_[Amostragem Pontual] | BH148: =IFERROR(VLOOKUP(ROWS(BH$3:BH148),$BF$3:$BG$298,2,0),"") -> Fósforo Total_[Amostragem Pontual]
BF149: =IF(IFERROR(SEARCH($BG$1,BG149,1),0)>0,MAX(BF$2:BF148)+1,0) -> 147 | BG149: Fosmete | BH149: =IFERROR(VLOOKUP(ROWS(BH$3:BH149),$BF$3:$BG$298,2,0),"") -> Fosmete
BF150: =IF(IFERROR(SEARCH($BG$1,BG150,1),0)>0,MAX(BF$2:BF149)+1,0) -> 148 | BG150: Glifosato | BH150: =IFERROR(VLOOKUP(ROWS(BH$3:BH150),$BF$3:$BG$298,2,0),"") -> Glifosato
BF151: =IF(IFERROR(SEARCH($BG$1,BG151,1),0)>0,MAX(BF$2:BF150)+1,0) -> 149 | BG151: Heptacloro | BH151: =IFERROR(VLOOKUP(ROWS(BH$3:BH151),$BF$3:$BG$298,2,0),"") -> Heptacloro
BF152: =IF(IFERROR(SEARCH($BG$1,BG152,1),0)>0,MAX(BF$2:BF151)+1,0) -> 150 | BG152: Heptacloro epóxido | BH152: =IFERROR(VLOOKUP(ROWS(BH$3:BH152),$BF$3:$BG$298,2,0),"") -> Heptacloro epóxido
BF153: =IF(IFERROR(SEARCH($BG$1,BG153,1),0)>0,MAX(BF$2:BF152)+1,0) -> 151 | BG153: Hexaclorobenzeno (HCB) | BH153: =IFERROR(VLOOKUP(ROWS(BH$3:BH153),$BF$3:$BG$298,2,0),"") -> Hexaclorobenzeno (HCB)
BF154: =IF(IFERROR(SEARCH($BG$1,BG154,1),0)>0,MAX(BF$2:BF153)+1,0) -> 152 | BG154: Hexaclorobutadieno(HCBD) | BH154: =IFERROR(VLOOKUP(ROWS(BH$3:BH154),$BF$3:$BG$298,2,0),"") -> Hexaclorobutadieno(HCBD)
BF155: =IF(IFERROR(SEARCH($BG$1,BG155,1),0)>0,MAX(BF$2:BF154)+1,0) -> 153 | BG155: Hexaclorociclohexano | BH155: =IFERROR(VLOOKUP(ROWS(BH$3:BH155),$BF$3:$BG$298,2,0),"") -> Hexaclorociclohexano
BF156: =IF(IFERROR(SEARCH($BG$1,BG156,1),0)>0,MAX(BF$2:BF155)+1,0) -> 154 | BG156: Hidrocarbonetos (C10 a C40) | BH156: =IFERROR(VLOOKUP(ROWS(BH$3:BH156),$BF$3:$BG$298,2,0),"") -> Hidrocarbonetos (C10 a C40)
BF157: =IF(IFERROR(SEARCH($BG$1,BG157,1),0)>0,MAX(BF$2:BF156)+1,0) -> 155 | BG157: Hidrocarbonetos Aromáticos Policíclicos (HAP) | BH157: =IFERROR(VLOOKUP(ROWS(BH$3:BH157),$BF$3:$BG$298,2,0),"") -> Hidrocarbonetos Aromáticos Policíclicos (HAP)
BF158: =IF(IFERROR(SEARCH($BG$1,BG158,1),0)>0,MAX(BF$2:BF157)+1,0) -> 156 | BG158: Hidrocarbonetos Dissolvidos e Emulsionados | BH158: =IFERROR(VLOOKUP(ROWS(BH$3:BH158),$BF$3:$BG$298,2,0),"") -> Hidrocarbonetos Dissolvidos e Emulsionados
BF159: =IF(IFERROR(SEARCH($BG$1,BG159,1),0)>0,MAX(BF$2:BF158)+1,0) -> 157 | BG159: Hidrocarbonetos Totais | BH159: =IFERROR(VLOOKUP(ROWS(BH$3:BH159),$BF$3:$BG$298,2,0),"") -> Hidrocarbonetos Totais
BF160: =IF(IFERROR(SEARCH($BG$1,BG160,1),0)>0,MAX(BF$2:BF159)+1,0) -> 158 | BG160: Humidade | BH160: =IFERROR(VLOOKUP(ROWS(BH$3:BH160),$BF$3:$BG$298,2,0),"") -> Humidade
BF161: =IF(IFERROR(SEARCH($BG$1,BG161,1),0)>0,MAX(BF$2:BF160)+1,0) -> 159 | BG161: Imidaclopride | BH161: =IFERROR(VLOOKUP(ROWS(BH$3:BH161),$BF$3:$BG$298,2,0),"") -> Imidaclopride
BF162: =IF(IFERROR(SEARCH($BG$1,BG162,1),0)>0,MAX(BF$2:BF161)+1,0) -> 160 | BG162: Indeno(1,2,3cd)pireno | BH162: =IFERROR(VLOOKUP(ROWS(BH$3:BH162),$BF$3:$BG$298,2,0),"") -> Indeno(1,2,3cd)pireno
BF163: =IF(IFERROR(SEARCH($BG$1,BG163,1),0)>0,MAX(BF$2:BF162)+1,0) -> 161 | BG163: Langelier (IL) | BH163: =IFERROR(VLOOKUP(ROWS(BH$3:BH163),$BF$3:$BG$298,2,0),"") -> Langelier (IL)
BF164: =IF(IFERROR(SEARCH($BG$1,BG164,1),0)>0,MAX(BF$2:BF163)+1,0) -> 162 | BG164: LAS | BH164: =IFERROR(VLOOKUP(ROWS(BH$3:BH164),$BF$3:$BG$298,2,0),"") -> LAS
BF165: =IF(IFERROR(SEARCH($BG$1,BG165,1),0)>0,MAX(BF$2:BF164)+1,0) -> 163 | BG165: Legionella pneumophila | BH165: =IFERROR(VLOOKUP(ROWS(BH$3:BH165),$BF$3:$BG$298,2,0),"") -> Legionella pneumophila
BF166: =IF(IFERROR(SEARCH($BG$1,BG166,1),0)>0,MAX(BF$2:BF165)+1,0) -> 164 | BG166: Legionella spp. | BH166: =IFERROR(VLOOKUP(ROWS(BH$3:BH166),$BF$3:$BG$298,2,0),"") -> Legionella spp.
BF167: =IF(IFERROR(SEARCH($BG$1,BG167,1),0)>0,MAX(BF$2:BF166)+1,0) -> 165 | BG167: Lindano | BH167: =IFERROR(VLOOKUP(ROWS(BH$3:BH167),$BF$3:$BG$298,2,0),"") -> Lindano
BF168: =IF(IFERROR(SEARCH($BG$1,BG168,1),0)>0,MAX(BF$2:BF167)+1,0) -> 166 | BG168: Linurão | BH168: =IFERROR(VLOOKUP(ROWS(BH$3:BH168),$BF$3:$BG$298,2,0),"") -> Linurão
BF169: =IF(IFERROR(SEARCH($BG$1,BG169,1),0)>0,MAX(BF$2:BF168)+1,0) -> 167 | BG169: Lítio | BH169: =IFERROR(VLOOKUP(ROWS(BH$3:BH169),$BF$3:$BG$298,2,0),"") -> Lítio
BF170: =IF(IFERROR(SEARCH($BG$1,BG170,1),0)>0,MAX(BF$2:BF169)+1,0) -> 168 | BG170: m,p -xileno | BH170: =IFERROR(VLOOKUP(ROWS(BH$3:BH170),$BF$3:$BG$298,2,0),"") -> m,p -xileno
BF171: =IF(IFERROR(SEARCH($BG$1,BG171,1),0)>0,MAX(BF$2:BF170)+1,0) -> 169 | BG171: Magnésio | BH171: =IFERROR(VLOOKUP(ROWS(BH$3:BH171),$BF$3:$BG$298,2,0),"") -> Magnésio
BF172: =IF(IFERROR(SEARCH($BG$1,BG172,1),0)>0,MAX(BF$2:BF171)+1,0) -> 170 | BG172: Malatião | BH172: =IFERROR(VLOOKUP(ROWS(BH$3:BH172),$BF$3:$BG$298,2,0),"") -> Malatião
BF173: =IF(IFERROR(SEARCH($BG$1,BG173,1),0)>0,MAX(BF$2:BF172)+1,0) -> 171 | BG173: Mancozebe | BH173: =IFERROR(VLOOKUP(ROWS(BH$3:BH173),$BF$3:$BG$298,2,0),"") -> Mancozebe
BF174: =IF(IFERROR(SEARCH($BG$1,BG174,1),0)>0,MAX(BF$2:BF173)+1,0) -> 172 | BG174: Manganês | BH174: =IFERROR(VLOOKUP(ROWS(BH$3:BH174),$BF$3:$BG$298,2,0),"") -> Manganês
BF175: =IF(IFERROR(SEARCH($BG$1,BG175,1),0)>0,MAX(BF$2:BF174)+1,0) -> 173 | BG175: Matéria Orgânica | BH175: =IFERROR(VLOOKUP(ROWS(BH$3:BH175),$BF$3:$BG$298,2,0),"") -> Matéria Orgânica
BF176: =IF(IFERROR(SEARCH($BG$1,BG176,1),0)>0,MAX(BF$2:BF175)+1,0) -> 174 | BG176: Matéria Seca | BH176: =IFERROR(VLOOKUP(ROWS(BH$3:BH176),$BF$3:$BG$298,2,0),"") -> Matéria Seca
BF177: =IF(IFERROR(SEARCH($BG$1,BG177,1),0)>0,MAX(BF$2:BF176)+1,0) -> 175 | BG177: MCPA | BH177: =IFERROR(VLOOKUP(ROWS(BH$3:BH177),$BF$3:$BG$298,2,0),"") -> MCPA
BF178: =IF(IFERROR(SEARCH($BG$1,BG178,1),0)>0,MAX(BF$2:BF177)+1,0) -> 176 | BG178: MCPP | BH178: =IFERROR(VLOOKUP(ROWS(BH$3:BH178),$BF$3:$BG$298,2,0),"") -> MCPP
BF179: =IF(IFERROR(SEARCH($BG$1,BG179,1),0)>0,MAX(BF$2:BF178)+1,0) -> 177 | BG179: Mercúrio | BH179: =IFERROR(VLOOKUP(ROWS(BH$3:BH179),$BF$3:$BG$298,2,0),"") -> Mercúrio
BF180: =IF(IFERROR(SEARCH($BG$1,BG180,1),0)>0,MAX(BF$2:BF179)+1,0) -> 178 | BG180: Microcistina-LR total | BH180: =IFERROR(VLOOKUP(ROWS(BH$3:BH180),$BF$3:$BG$298,2,0),"") -> Microcistina-LR total
BF181: =IF(IFERROR(SEARCH($BG$1,BG181,1),0)>0,MAX(BF$2:BF180)+1,0) -> 179 | BG181: Microcistinas LR | BH181: =IFERROR(VLOOKUP(ROWS(BH$3:BH181),$BF$3:$BG$298,2,0),"") -> Microcistinas LR
BF182: =IF(IFERROR(SEARCH($BG$1,BG182,1),0)>0,MAX(BF$2:BF181)+1,0) -> 180 | BG182: Microcistinas RR | BH182: =IFERROR(VLOOKUP(ROWS(BH$3:BH182),$BF$3:$BG$298,2,0),"") -> Microcistinas RR
BF183: =IF(IFERROR(SEARCH($BG$1,BG183,1),0)>0,MAX(BF$2:BF182)+1,0) -> 181 | BG183: Microcistinas Totais | BH183: =IFERROR(VLOOKUP(ROWS(BH$3:BH183),$BF$3:$BG$298,2,0),"") -> Microcistinas Totais
BF184: =IF(IFERROR(SEARCH($BG$1,BG184,1),0)>0,MAX(BF$2:BF183)+1,0) -> 182 | BG184: Microcistinas YR | BH184: =IFERROR(VLOOKUP(ROWS(BH$3:BH184),$BF$3:$BG$298,2,0),"") -> Microcistinas YR
BF185: =IF(IFERROR(SEARCH($BG$1,BG185,1),0)>0,MAX(BF$2:BF184)+1,0) -> 183 | BG185: Mineralização Total | BH185: =IFERROR(VLOOKUP(ROWS(BH$3:BH185),$BF$3:$BG$298,2,0),"") -> Mineralização Total
BF186: =IF(IFERROR(SEARCH($BG$1,BG186,1),0)>0,MAX(BF$2:BF185)+1,0) -> 184 | BG186: Molibdénio | BH186: =IFERROR(VLOOKUP(ROWS(BH$3:BH186),$BF$3:$BG$298,2,0),"") -> Molibdénio
BF187: =IF(IFERROR(SEARCH($BG$1,BG187,1),0)>0,MAX(BF$2:BF186)+1,0) -> 185 | BG187: Naftaleno | BH187: =IFERROR(VLOOKUP(ROWS(BH$3:BH187),$BF$3:$BG$298,2,0),"") -> Naftaleno
BF188: =IF(IFERROR(SEARCH($BG$1,BG188,1),0)>0,MAX(BF$2:BF187)+1,0) -> 186 | BG188: Níquel | BH188: =IFERROR(VLOOKUP(ROWS(BH$3:BH188),$BF$3:$BG$298,2,0),"") -> Níquel
BF189: =IF(IFERROR(SEARCH($BG$1,BG189,1),0)>0,MAX(BF$2:BF188)+1,0) -> 187 | BG189: Níquel_PCQA_com Purga | BH189: =IFERROR(VLOOKUP(ROWS(BH$3:BH189),$BF$3:$BG$298,2,0),"") -> Níquel_PCQA_com Purga
BF190: =IF(IFERROR(SEARCH($BG$1,BG190,1),0)>0,MAX(BF$2:BF189)+1,0) -> 188 | BG190: Níquel_PCQA_sem Purga | BH190: =IFERROR(VLOOKUP(ROWS(BH$3:BH190),$BF$3:$BG$298,2,0),"") -> Níquel_PCQA_sem Purga
BF191: =IF(IFERROR(SEARCH($BG$1,BG191,1),0)>0,MAX(BF$2:BF190)+1,0) -> 189 | BG191: Nitratos | BH191: =IFERROR(VLOOKUP(ROWS(BH$3:BH191),$BF$3:$BG$298,2,0),"") -> Nitratos
BF192: =IF(IFERROR(SEARCH($BG$1,BG192,1),0)>0,MAX(BF$2:BF191)+1,0) -> 190 | BG192: Nitrito | BH192: =IFERROR(VLOOKUP(ROWS(BH$3:BH192),$BF$3:$BG$298,2,0),"") -> Nitrito
BF193: =IF(IFERROR(SEARCH($BG$1,BG193,1),0)>0,MAX(BF$2:BF192)+1,0) -> 191 | BG193: Nível Piezométrico | BH193: =IFERROR(VLOOKUP(ROWS(BH$3:BH193),$BF$3:$BG$298,2,0),"") -> Nível Piezométrico
BF194: =IF(IFERROR(SEARCH($BG$1,BG194,1),0)>0,MAX(BF$2:BF193)+1,0) -> 192 | BG194: Número de Colónias a 22 ºC | BH194: =IFERROR(VLOOKUP(ROWS(BH$3:BH194),$BF$3:$BG$298,2,0),"") -> Número de Colónias a 22 ºC
BF195: =IF(IFERROR(SEARCH($BG$1,BG195,1),0)>0,MAX(BF$2:BF194)+1,0) -> 193 | BG195: Número de Colónias a 36 ºC | BH195: =IFERROR(VLOOKUP(ROWS(BH$3:BH195),$BF$3:$BG$298,2,0),"") -> Número de Colónias a 36 ºC
BF196: =IF(IFERROR(SEARCH($BG$1,BG196,1),0)>0,MAX(BF$2:BF195)+1,0) -> 194 | BG196: Óleos e Gorduras | BH196: =IFERROR(VLOOKUP(ROWS(BH$3:BH196),$BF$3:$BG$298,2,0),"") -> Óleos e Gorduras
BF197: =IF(IFERROR(SEARCH($BG$1,BG197,1),0)>0,MAX(BF$2:BF196)+1,0) -> 195 | BG197: Óleos e Gorduras [Amostragem Pontual] | BH197: =IFERROR(VLOOKUP(ROWS(BH$3:BH197),$BF$3:$BG$298,2,0),"") -> Óleos e Gorduras [Amostragem Pontual]
BF198: =IF(IFERROR(SEARCH($BG$1,BG198,1),0)>0,MAX(BF$2:BF197)+1,0) -> 196 | BG198: Óleos Minerais | BH198: =IFERROR(VLOOKUP(ROWS(BH$3:BH198),$BF$3:$BG$298,2,0),"") -> Óleos Minerais
BF199: =IF(IFERROR(SEARCH($BG$1,BG199,1),0)>0,MAX(BF$2:BF198)+1,0) -> 197 | BG199: Ometoato | BH199: =IFERROR(VLOOKUP(ROWS(BH$3:BH199),$BF$3:$BG$298,2,0),"") -> Ometoato
BF200: =IF(IFERROR(SEARCH($BG$1,BG200,1),0)>0,MAX(BF$2:BF199)+1,0) -> 198 | BG200: Ovos de Parasitas Intestinais | BH200: =IFERROR(VLOOKUP(ROWS(BH$3:BH200),$BF$3:$BG$298,2,0),"") -> Ovos de Parasitas Intestinais
... 98 more rows
